[Event "December 5 Early 2023"]
[Site "https://www.chess.com"]
[Date "2023.12.05"]
[Round "3"]
[White "Yezhel, Valiantsin"]
[Black "Sai Han Thiha"]
[Result "0-1"]
[Board "141"]
[TimeControl "180+1"]
[WhiteFideId "13504983"]
[BlackFideId "13012290"]
[WhiteElo "2597"]
[BlackElo "2406"]
[WhiteTeam "FID"]
[BlackTeam "MYA"]
[WhiteClock "0:00:05"]
[BlackClock "0:00:09"]

1. g3 {[%clk 0:03:00]}  d5 {[%clk 0:02:50]} 2. Bg2 {[%clk 0:03:00]}  c6 {[%clk 0:02:50]} 3. Nf3 {[%clk 0:02:59]}  Bf5 {[%clk 0:02:46]} 4. d4 {[%clk 0:03:00]}  e6 {[%clk 0:02:44]} 5. O-O {[%clk 0:03:00]}  Nf6 {[%clk 0:02:42]} 6. c4 {[%clk 0:03:01]}  Nbd7 {[%clk 0:02:41]} 7. Nc3 {[%clk 0:03:01]}  h6 {[%clk 0:02:24]} 8. Nd2 {[%clk 0:03:01]}  Be7 {[%clk 0:02:22]} 9. e4 {[%clk 0:03:01]}  dxe4 {[%clk 0:02:23]} 10. Ndxe4 {[%clk 0:03:01]}  Nxe4 {[%clk 0:02:24]} 11. Nxe4 {[%clk 0:03:02]}  Nf6 {[%clk 0:02:23]} 12. Nc3 {[%clk 0:03:03]}  O-O {[%clk 0:02:21]} 13. h3 {[%clk 0:03:02]}  Qb6 {[%clk 0:02:17]} 14. Na4 {[%clk 0:02:54]}  Qa6 {[%clk 0:02:04]} 15. Qb3 {[%clk 0:02:51]}  Rad8 {[%clk 0:01:54]} 16. Be3 {[%clk 0:02:51]}  Be4 {[%clk 0:01:52]} 17. f3 {[%clk 0:02:47]}  Bg6 {[%clk 0:01:49]} 18. Rfd1 {[%clk 0:02:47]}  Nd7 {[%clk 0:01:48]} 19. g4 {[%clk 0:02:36]}  Nb6 {[%clk 0:01:36]} 20. Nc5 {[%clk 0:02:19]}  Qxc4 {[%clk 0:00:40]} 21. Nxb7 {[%clk 0:02:13]}  Rb8 {[%clk 0:00:39]} 22. Na5 {[%clk 0:02:08]}  Qxb3 {[%clk 0:00:40]} 23. axb3 {[%clk 0:02:07]}  Nd5 {[%clk 0:00:40]} 24. Bf2 {[%clk 0:02:01]}  Rb6 {[%clk 0:00:33]} 25. Rdc1 {[%clk 0:01:58]}  Rc8 {[%clk 0:00:30]} 26. Bf1 {[%clk 0:01:54]}  Bg5 {[%clk 0:00:28]} 27. Rc5 {[%clk 0:01:42]}  Ne3 {[%clk 0:00:20]} 28. Rxg5 {[%clk 0:01:28]}  Nxf1 {[%clk 0:00:16]} 29. Rc5 {[%clk 0:01:20]}  Nd2 {[%clk 0:00:14]} 30. Rc3 {[%clk 0:01:21]}  Rb5 {[%clk 0:00:06]} 31. Be3 {[%clk 0:01:13]}  Nxf3+ {[%clk 0:00:05]} 32. Kg2 {[%clk 0:01:10]}  Ng5 {[%clk 0:00:05]} 33. Bxg5 {[%clk 0:01:05]}  hxg5 {[%clk 0:00:06]} 34. Kf2 {[%clk 0:01:03]}  Be4 {[%clk 0:00:06]} 35. Ke3 {[%clk 0:01:04]}  Bd5 {[%clk 0:00:06]} 36. Ra3 {[%clk 0:00:59]}  f6 {[%clk 0:00:06]} 37. Nc4 {[%clk 0:00:55]}  Rc7 {[%clk 0:00:05]} 38. Ra6 {[%clk 0:00:50]}  Kf8 {[%clk 0:00:03]} 39. Na3 {[%clk 0:00:46]}  Rb6 {[%clk 0:00:02]} 40. Rxb6 {[%clk 0:00:43]}  axb6 {[%clk 0:00:03]} 41. Nc4 {[%clk 0:00:43]}  Ke7 {[%clk 0:00:04]} 42. Nxb6 {[%clk 0:00:43]}  Kd6 {[%clk 0:00:04]} 43. Na4 {[%clk 0:00:42]}  Rb7 {[%clk 0:00:05]} 44. Nc5 {[%clk 0:00:42]}  Rb8 {[%clk 0:00:05]} 45. b4 {[%clk 0:00:40]}  Ra8 {[%clk 0:00:06]} 46. Ra3 {[%clk 0:00:40]}  Rb8 {[%clk 0:00:05]} 47. Ra4 {[%clk 0:00:38]}  e5 {[%clk 0:00:04]} 48. dxe5+ {[%clk 0:00:37]}  fxe5 {[%clk 0:00:05]} 49. Nd3 {[%clk 0:00:34]}  Rf8 {[%clk 0:00:05]} 50. Ra7 {[%clk 0:00:33]}  Rf3+ {[%clk 0:00:05]} 51. Kd2 {[%clk 0:00:33]}  Rxh3 {[%clk 0:00:06]} 52. Nc5 {[%clk 0:00:32]}  e4 {[%clk 0:00:06]} 53. Rxg7 {[%clk 0:00:31]}  Ke5 {[%clk 0:00:07]} 54. Rxg5+ {[%clk 0:00:28]}  Kd4 {[%clk 0:00:07]} 55. Rg7 {[%clk 0:00:23]}  Rh2+ {[%clk 0:00:08]} 56. Ke1 {[%clk 0:00:22]}  e3 {[%clk 0:00:08]} 57. g5 {[%clk 0:00:18]}  Bf3 {[%clk 0:00:08]} 58. Rd7+ {[%clk 0:00:17]}  Kc4 {[%clk 0:00:08]} 59. Kf1 {[%clk 0:00:05]}  Rh1# {[%clk 0:00:09]} 0-1

[Event "December 5 Early 2023"]
[Site "https://www.chess.com"]
[Date "2023.12.05"]
[Round "3"]
[White "Garrido, Denis"]
[Black "Stoleriu, George"]
[Result "0-1"]
[Board "144"]
[TimeControl "180+1"]
[WhiteFideId "601217"]
[BlackFideId "1227505"]
[WhiteElo "2378"]
[BlackElo "2593"]
[WhiteTeam "FRA"]
[BlackTeam "ROU"]
[WhiteClock "0:01:59"]
[BlackClock "0:02:39"]

1. d4 {[%clk 0:03:00]}  e6 {[%clk 0:02:59]} 2. e4 {[%clk 0:03:00]}  d5 {[%clk 0:02:59]} 3. exd5 {[%clk 0:02:58]}  exd5 {[%clk 0:03:00]} 4. Nf3 {[%clk 0:02:58]}  Bg4 {[%clk 0:02:59]} 5. h3 {[%clk 0:02:57]}  Bh5 {[%clk 0:02:59]} 6. Qe2+ {[%clk 0:02:58]}  Be7 {[%clk 0:02:56]} 7. Qb5+ {[%clk 0:02:56]}  c6 {[%clk 0:02:54]} 8. Qxb7 {[%clk 0:02:56]}  Bxf3 {[%clk 0:02:55]} 9. Qxa8 {[%clk 0:02:49]}  Be4 {[%clk 0:02:53]} 10. Nc3 {[%clk 0:02:45]}  Bxc2 {[%clk 0:02:52]} 11. Be2 {[%clk 0:02:40]}  Nf6 {[%clk 0:02:51]} 12. Bf4 {[%clk 0:02:35]}  Bd6 {[%clk 0:02:49]} 13. Bxd6 {[%clk 0:02:33]}  Qxd6 {[%clk 0:02:50]} 14. Qxa7 {[%clk 0:02:29]}  O-O {[%clk 0:02:49]} 15. O-O {[%clk 0:02:28]}  Nbd7 {[%clk 0:02:48]} 16. Rac1 {[%clk 0:02:24]}  Bg6 {[%clk 0:02:47]} 17. Rfe1 {[%clk 0:02:17]}  h5 {[%clk 0:02:44]} 18. Qa3 {[%clk 0:02:11]}  Qf4 {[%clk 0:02:42]} 19. Nd1 {[%clk 0:01:59]}  Qxc1 {[%clk 0:02:39]} 0-1

[Event "December 5 Early 2023"]
[Site "https://www.chess.com"]
[Date "2023.12.05"]
[Round "3"]
[White "Buchenau, Frank"]
[Black "Bodnaruk, Anastasia"]
[Result "1-0"]
[Board "145"]
[TimeControl "180+1"]
[WhiteFideId "4604350"]
[BlackFideId "4181751"]
[WhiteElo "2368"]
[BlackElo "2589"]
[WhiteTeam "GER"]
[BlackTeam "RUS"]
[WhiteClock "0:00:01"]
[BlackClock "0:00:00"]

1. e4 {[%clk 0:02:56]}  c5 {[%clk 0:02:59]} 2. Nf3 {[%clk 0:02:55]}  d6 {[%clk 0:03:00]} 3. Bb5+ {[%clk 0:02:54]}  Nd7 {[%clk 0:02:57]} 4. O-O {[%clk 0:02:53]}  a6 {[%clk 0:02:56]} 5. Bd3 {[%clk 0:02:53]}  Ngf6 {[%clk 0:02:54]} 6. c3 {[%clk 0:02:52]}  e6 {[%clk 0:02:54]} 7. Bc2 {[%clk 0:02:52]}  b5 {[%clk 0:02:50]} 8. d4 {[%clk 0:02:52]}  Bb7 {[%clk 0:02:49]} 9. Re1 {[%clk 0:02:52]}  Be7 {[%clk 0:02:49]} 10. Nbd2 {[%clk 0:02:50]}  Qc7 {[%clk 0:02:49]} 11. Nf1 {[%clk 0:02:49]}  O-O {[%clk 0:02:49]} 12. Ng3 {[%clk 0:02:48]}  Rac8 {[%clk 0:02:41]} 13. Bd3 {[%clk 0:02:46]}  Rfe8 {[%clk 0:02:32]} 14. Bf4 {[%clk 0:02:43]}  e5 {[%clk 0:02:18]} 15. Bg5 {[%clk 0:02:28]}  g6 {[%clk 0:02:10]} 16. a4 {[%clk 0:02:07]}  b4 {[%clk 0:01:47]} 17. dxc5 {[%clk 0:01:51]}  dxc5 {[%clk 0:01:43]} 18. Nd2 {[%clk 0:01:43]}  Rcd8 {[%clk 0:01:29]} 19. a5 {[%clk 0:01:35]}  bxc3 {[%clk 0:01:17]} 20. bxc3 {[%clk 0:01:34]}  c4 {[%clk 0:01:18]} 21. Bxc4 {[%clk 0:01:27]}  Nc5 {[%clk 0:01:18]} 22. Qf3 {[%clk 0:01:22]}  Kg7 {[%clk 0:01:01]} 23. Bxf6+ {[%clk 0:00:55]}  Bxf6 {[%clk 0:01:01]} 24. Bd5 {[%clk 0:00:55]}  Ne6 {[%clk 0:00:50]} 25. Reb1 {[%clk 0:00:43]}  Ng5 {[%clk 0:00:32]} 26. Qe3 {[%clk 0:00:37]}  Bxd5 {[%clk 0:00:30]} 27. exd5 {[%clk 0:00:36]}  Rxd5 {[%clk 0:00:30]} 28. Rb6 {[%clk 0:00:20]}  Ne6 {[%clk 0:00:20]} 29. Nde4 {[%clk 0:00:18]}  Be7 {[%clk 0:00:15]} 30. Rxa6 {[%clk 0:00:17]}  Red8 {[%clk 0:00:15]} 31. Ra7 {[%clk 0:00:17]}  Rd1+ {[%clk 0:00:14]} 32. Rxd1 {[%clk 0:00:15]}  Rxd1+ {[%clk 0:00:15]} 33. Nf1 {[%clk 0:00:16]}  Qc4 {[%clk 0:00:14]} 34. Nd2 {[%clk 0:00:13]}  Qb5 {[%clk 0:00:13]} 35. c4 {[%clk 0:00:12]}  Qb4 {[%clk 0:00:10]} 36. Qxe5+ {[%clk 0:00:12]}  Bf6 {[%clk 0:00:09]} 37. Qxe6 {[%clk 0:00:11]}  Qxd2 {[%clk 0:00:06]} 38. Rxf7+ {[%clk 0:00:04]}  Kh6 {[%clk 0:00:06]} 39. Qe3+ {[%clk 0:00:04]}  Qxe3 {[%clk 0:00:06]} 40. fxe3 {[%clk 0:00:04]}  Bc3 {[%clk 0:00:05]} 41. a6 {[%clk 0:00:04]}  Ra1 {[%clk 0:00:05]} 42. a7 {[%clk 0:00:04]}  Bb4 {[%clk 0:00:06]} 43. Kf2 {[%clk 0:00:04]}  Bc5 {[%clk 0:00:06]} 44. Ke2 {[%clk 0:00:03]}  Bxa7 {[%clk 0:00:06]} 45. Ng3 {[%clk 0:00:02]}  Bc5 {[%clk 0:00:05]} 46. Ne4 {[%clk 0:00:02]}  Ra2+ {[%clk 0:00:00]} 47. Kf3 {[%clk 0:00:01]} 1-0

[Event "December 5 Early 2023"]
[Site "https://www.chess.com"]
[Date "2023.12.05"]
[Round "3"]
[White "Aaditya Dhingra"]
[Black "Sari, Yasin"]
[Result "0-1"]
[Board "146"]
[TimeControl "180+1"]
[WhiteFideId "25678191"]
[BlackFideId "6320902"]
[WhiteElo "2589"]
[BlackElo "2354"]
[WhiteTeam "IND"]
[BlackTeam "TUR"]
[WhiteClock "0:00:16"]
[BlackClock "0:00:06"]

1. c4 {[%clk 0:03:00]}  c6 {[%clk 0:02:59]} 2. Nf3 {[%clk 0:02:59]}  d5 {[%clk 0:02:59]} 3. e3 {[%clk 0:02:58]}  Nf6 {[%clk 0:02:59]} 4. Nc3 {[%clk 0:02:58]}  Bf5 {[%clk 0:02:58]} 5. b3 {[%clk 0:02:56]}  Nbd7 {[%clk 0:02:54]} 6. Bb2 {[%clk 0:02:56]}  e5 {[%clk 0:02:50]} 7. Be2 {[%clk 0:02:54]}  a6 {[%clk 0:02:38]} 8. O-O {[%clk 0:02:53]}  e4 {[%clk 0:02:35]} 9. Nd4 {[%clk 0:02:51]}  Bg6 {[%clk 0:02:35]} 10. cxd5 {[%clk 0:02:50]}  cxd5 {[%clk 0:02:35]} 11. d3 {[%clk 0:02:50]}  exd3 {[%clk 0:02:23]} 12. Bxd3 {[%clk 0:02:49]}  Bd6 {[%clk 0:02:24]} 13. Nf5 {[%clk 0:02:45]}  Bxf5 {[%clk 0:02:21]} 14. Bxf5 {[%clk 0:02:46]}  Nb6 {[%clk 0:01:57]} 15. a4 {[%clk 0:02:38]}  O-O {[%clk 0:01:50]} 16. a5 {[%clk 0:02:36]}  Nc8 {[%clk 0:01:50]} 17. Na4 {[%clk 0:02:22]}  Qe7 {[%clk 0:01:41]} 18. Qd4 {[%clk 0:02:13]}  Re8 {[%clk 0:01:34]} 19. Rac1 {[%clk 0:02:08]}  Qf8 {[%clk 0:01:12]} 20. Bxc8 {[%clk 0:02:01]}  Raxc8 {[%clk 0:01:13]} 21. Nb6 {[%clk 0:01:37]}  Be5 {[%clk 0:01:04]} 22. Qxe5 {[%clk 0:01:21]}  Rxc1 {[%clk 0:01:04]} 23. Rxc1 {[%clk 0:01:14]}  Rxe5 {[%clk 0:01:01]} 24. Bxe5 {[%clk 0:01:14]}  Ne8 {[%clk 0:00:55]} 25. Rc8 {[%clk 0:01:11]}  f6 {[%clk 0:00:55]} 26. Bd4 {[%clk 0:01:06]}  Qb4 {[%clk 0:00:43]} 27. g3 {[%clk 0:00:59]}  Kf7 {[%clk 0:00:42]} 28. Nxd5 {[%clk 0:00:55]}  Qxb3 {[%clk 0:00:39]} 29. Nb6 {[%clk 0:00:53]}  Qb1+ {[%clk 0:00:34]} 30. Kg2 {[%clk 0:00:52]}  Qe4+ {[%clk 0:00:33]} 31. f3 {[%clk 0:00:52]}  Qf5 {[%clk 0:00:33]} 32. Rc5 {[%clk 0:00:51]}  Qe6 {[%clk 0:00:30]} 33. Nc4 {[%clk 0:00:49]}  Kg6 {[%clk 0:00:20]} 34. h4 {[%clk 0:00:47]}  h5 {[%clk 0:00:20]} 35. e4 {[%clk 0:00:45]}  Nd6 {[%clk 0:00:19]} 36. Nb6 {[%clk 0:00:36]}  Nxe4 {[%clk 0:00:19]} 37. Rc2 {[%clk 0:00:33]}  Nd6 {[%clk 0:00:15]} 38. Bf2 {[%clk 0:00:32]}  Nb5 {[%clk 0:00:08]} 39. Nc4 {[%clk 0:00:27]}  Qf5 {[%clk 0:00:07]} 40. Rd2 {[%clk 0:00:24]}  Nc3 {[%clk 0:00:06]} 41. Rd7 {[%clk 0:00:16]}  Qxd7 {[%clk 0:00:06]} 0-1

[Event "December 5 Early 2023"]
[Site "https://www.chess.com"]
[Date "2023.12.05"]
[Round "3"]
[White "Seder, Mohammed"]
[Black "Morgunov, Marc"]
[Result "1-0"]
[Board "147"]
[TimeControl "180+1"]
[WhiteFideId "11505567"]
[BlackFideId "1640305"]
[WhiteElo "2348"]
[BlackElo "2588"]
[WhiteTeam "PLE"]
[BlackTeam "AUT"]
[WhiteClock "0:00:02"]
[BlackClock "0:00:00"]

1. e4 {[%clk 0:03:00]}  c5 {[%clk 0:03:00]} 2. Nf3 {[%clk 0:03:00]}  d6 {[%clk 0:03:00]} 3. Bb5+ {[%clk 0:03:00]}  Nd7 {[%clk 0:03:00]} 4. O-O {[%clk 0:03:00]}  a6 {[%clk 0:02:59]} 5. Bxd7+ {[%clk 0:03:00]}  Bxd7 {[%clk 0:02:59]} 6. Re1 {[%clk 0:02:59]}  Nf6 {[%clk 0:02:59]} 7. c3 {[%clk 0:02:58]}  Bc6 {[%clk 0:02:52]} 8. d4 {[%clk 0:02:59]}  Bxe4 {[%clk 0:02:47]} 9. Bg5 {[%clk 0:02:59]}  Bxf3 {[%clk 0:02:43]} 10. Qxf3 {[%clk 0:02:58]}  cxd4 {[%clk 0:02:23]} 11. cxd4 {[%clk 0:02:30]}  Qb6 {[%clk 0:02:23]} 12. Bxf6 {[%clk 0:01:48]}  gxf6 {[%clk 0:02:24]} 13. Qxf6 {[%clk 0:01:41]}  Rg8 {[%clk 0:02:23]} 14. Nc3 {[%clk 0:01:33]}  O-O-O {[%clk 0:01:47]} 15. Qxf7 {[%clk 0:01:23]}  Rg6 {[%clk 0:01:21]} 16. Nd5 {[%clk 0:01:08]}  Qxd4 {[%clk 0:01:13]} 17. Nxe7+ {[%clk 0:00:52]}  Bxe7 {[%clk 0:01:12]} 18. Rxe7 {[%clk 0:00:30]}  Qxb2 {[%clk 0:00:54]} 19. Qf5+ {[%clk 0:00:21]}  Kb8 {[%clk 0:00:53]} 20. Rb1 {[%clk 0:00:21]}  Qd4 {[%clk 0:00:18]} 21. Rbxb7+ {[%clk 0:00:17]}  Ka8 {[%clk 0:00:19]} 22. Qf3 {[%clk 0:00:10]}  d5 {[%clk 0:00:16]} 23. h3 {[%clk 0:00:07]}  Rc8 {[%clk 0:00:06]} 24. Ra7+ {[%clk 0:00:03]}  Qxa7 {[%clk 0:00:06]} 25. Qxd5+ {[%clk 0:00:03]}  Rgc6 {[%clk 0:00:06]} 26. Rxa7+ {[%clk 0:00:02]}  Kxa7 {[%clk 0:00:07]} 27. f4 {[%clk 0:00:02]}  R8c7 {[%clk 0:00:06]} 28. f5 {[%clk 0:00:02]}  Rc2 {[%clk 0:00:05]} 29. g4 {[%clk 0:00:01]}  Re2 {[%clk 0:00:02]} 30. Qd4+ {[%clk 0:00:01]}  Kb8 {[%clk 0:00:02]} 31. Qh8+ {[%clk 0:00:01]}  Kb7 {[%clk 0:00:00]} 32. Kf1 {[%clk 0:00:02]} 1-0

[Event "December 5 Early 2023"]
[Site "https://www.chess.com"]
[Date "2023.12.05"]
[Round "3"]
[White "Lazarne Vajda, Szidonia"]
[Black "Avramidou, Anastasia"]
[Result "1-0"]
[Board "148"]
[TimeControl "180+1"]
[WhiteFideId "723894"]
[BlackFideId "4239873"]
[WhiteElo "2333"]
[BlackElo "2588"]
[WhiteTeam "HUN"]
[BlackTeam "GRE"]
[WhiteClock "0:00:29"]
[BlackClock "0:00:14"]

1. e4 {[%clk 0:02:54]}  g6 {[%clk 0:02:59]} 2. d4 {[%clk 0:02:53]}  Bg7 {[%clk 0:02:59]} 3. Nc3 {[%clk 0:02:53]}  c5 {[%clk 0:03:00]} 4. d5 {[%clk 0:02:50]}  d6 {[%clk 0:03:00]} 5. f4 {[%clk 0:02:50]}  Nf6 {[%clk 0:02:59]} 6. Bb5+ {[%clk 0:02:48]}  Nfd7 {[%clk 0:02:59]} 7. a4 {[%clk 0:02:48]}  O-O {[%clk 0:02:59]} 8. Nf3 {[%clk 0:02:48]}  a6 {[%clk 0:02:58]} 9. Be2 {[%clk 0:02:47]}  Nf6 {[%clk 0:02:54]} 10. O-O {[%clk 0:02:47]}  Bg4 {[%clk 0:02:53]} 11. h3 {[%clk 0:02:31]}  Bxf3 {[%clk 0:02:53]} 12. Bxf3 {[%clk 0:02:31]}  Nbd7 {[%clk 0:02:54]} 13. Kh2 {[%clk 0:02:25]}  Ne8 {[%clk 0:02:53]} 14. f5 {[%clk 0:02:23]}  Nc7 {[%clk 0:02:49]} 15. Bg5 {[%clk 0:02:13]}  h6 {[%clk 0:02:31]} 16. Bh4 {[%clk 0:02:11]}  g5 {[%clk 0:02:32]} 17. Bf2 {[%clk 0:02:02]}  b5 {[%clk 0:02:31]} 18. Qd2 {[%clk 0:01:54]}  Ne5 {[%clk 0:02:30]} 19. Be2 {[%clk 0:01:52]}  e6 {[%clk 0:02:14]} 20. Be3 {[%clk 0:01:48]}  b4 {[%clk 0:02:13]} 21. Nd1 {[%clk 0:01:45]}  exd5 {[%clk 0:02:13]} 22. exd5 {[%clk 0:01:41]}  Re8 {[%clk 0:02:13]} 23. Bg1 {[%clk 0:01:23]}  Qb8 {[%clk 0:01:52]} 24. f6 {[%clk 0:01:19]}  Bf8 {[%clk 0:01:42]} 25. Ne3 {[%clk 0:01:19]}  Qb7 {[%clk 0:01:33]} 26. b3 {[%clk 0:01:19]}  Ng6 {[%clk 0:01:30]} 27. Bc4 {[%clk 0:01:12]}  Re4 {[%clk 0:01:24]} 28. Nf5 {[%clk 0:01:08]}  Nxd5 {[%clk 0:01:14]} 29. Bxd5 {[%clk 0:01:05]}  Qc7 {[%clk 0:01:08]} 30. Bxe4 {[%clk 0:01:05]}  d5+ {[%clk 0:01:09]} 31. Kh1 {[%clk 0:01:01]}  dxe4 {[%clk 0:01:09]} 32. Ne7+ {[%clk 0:00:42]}  Nxe7 {[%clk 0:01:08]} 33. fxe7 {[%clk 0:00:43]}  Qxe7 {[%clk 0:01:09]} 34. Qd5 {[%clk 0:00:42]}  Rd8 {[%clk 0:01:08]} 35. Qf5 {[%clk 0:00:41]}  e3 {[%clk 0:00:58]} 36. Bxe3 {[%clk 0:00:41]}  Bg7 {[%clk 0:00:29]} 37. Bxc5 {[%clk 0:00:37]}  Qb7 {[%clk 0:00:27]} 38. Rad1 {[%clk 0:00:36]}  Rc8 {[%clk 0:00:27]} 39. Bd4 {[%clk 0:00:35]}  Rc6 {[%clk 0:00:15]} 40. Bxg7 {[%clk 0:00:32]}  Kxg7 {[%clk 0:00:14]} 41. Rd7 {[%clk 0:00:29]} 1-0

[Event "December 5 Early 2023"]
[Site "https://www.chess.com"]
[Date "2023.12.05"]
[Round "3"]
[White "Kononenko, Dmitry"]
[Black "Khuslen, Erdenebayar"]
[Result "1-0"]
[Board "150"]
[TimeControl "180+1"]
[WhiteFideId "14113538"]
[BlackFideId "4910532"]
[WhiteElo "2582"]
[BlackElo "2320"]
[WhiteTeam "UKR"]
[BlackTeam "MGL"]
[WhiteClock "0:01:26"]
[BlackClock "0:00:03"]

1. e4 {[%clk 0:03:00]}  c5 {[%clk 0:02:59]} 2. Nf3 {[%clk 0:03:00]}  e6 {[%clk 0:02:59]} 3. d4 {[%clk 0:03:01]}  cxd4 {[%clk 0:02:59]} 4. Nxd4 {[%clk 0:03:01]}  Nc6 {[%clk 0:02:59]} 5. Nc3 {[%clk 0:03:01]}  Qc7 {[%clk 0:02:58]} 6. Bc4 {[%clk 0:03:00]}  a6 {[%clk 0:02:51]} 7. Bb3 {[%clk 0:02:59]}  Nf6 {[%clk 0:02:44]} 8. O-O {[%clk 0:02:59]}  Be7 {[%clk 0:02:23]} 9. Kh1 {[%clk 0:02:58]}  O-O {[%clk 0:02:15]} 10. f4 {[%clk 0:02:58]}  d6 {[%clk 0:02:15]} 11. f5 {[%clk 0:02:56]}  e5 {[%clk 0:01:40]} 12. Nde2 {[%clk 0:02:55]}  h6 {[%clk 0:01:30]} 13. Ng3 {[%clk 0:02:54]}  Nd4 {[%clk 0:01:23]} 14. Be3 {[%clk 0:02:53]}  Nxb3 {[%clk 0:01:19]} 15. axb3 {[%clk 0:02:51]}  b5 {[%clk 0:01:15]} 16. Nxb5 {[%clk 0:02:50]}  Qd7 {[%clk 0:01:03]} 17. Nc3 {[%clk 0:02:49]}  Bb7 {[%clk 0:01:03]} 18. Nh5 {[%clk 0:02:48]}  Rac8 {[%clk 0:00:55]} 19. Nxf6+ {[%clk 0:02:47]}  Bxf6 {[%clk 0:00:55]} 20. Qg4 {[%clk 0:02:47]}  Kh8 {[%clk 0:00:54]} 21. Rf3 {[%clk 0:02:47]}  d5 {[%clk 0:00:52]} 22. Rh3 {[%clk 0:02:44]}  Kh7 {[%clk 0:00:37]} 23. Rd1 {[%clk 0:02:28]}  d4 {[%clk 0:00:35]} 24. Qh5 {[%clk 0:02:23]}  Rh8 {[%clk 0:00:33]} 25. Bxh6 {[%clk 0:02:17]}  Kg8 {[%clk 0:00:32]} 26. Rg3 {[%clk 0:02:16]}  Kf8 {[%clk 0:00:23]} 27. Rxg7 {[%clk 0:01:50]}  Bxg7 {[%clk 0:00:22]} 28. Bxg7+ {[%clk 0:01:49]}  Kxg7 {[%clk 0:00:22]} 29. f6+ {[%clk 0:01:49]}  Kxf6 {[%clk 0:00:18]} 30. Rf1+ {[%clk 0:01:42]}  Ke6 {[%clk 0:00:18]} 31. Qg5 {[%clk 0:01:32]}  Kd6 {[%clk 0:00:16]} 32. Rf6+ {[%clk 0:01:30]}  Kc7 {[%clk 0:00:15]} 33. Qxe5+ {[%clk 0:01:30]}  Kd8 {[%clk 0:00:13]} 34. Rd6 {[%clk 0:01:29]}  dxc3 {[%clk 0:00:12]} 35. Qxh8+ {[%clk 0:01:29]}  Kc7 {[%clk 0:00:10]} 36. Rxd7+ {[%clk 0:01:29]}  Kxd7 {[%clk 0:00:10]} 37. Qd4+ {[%clk 0:01:29]}  Ke7 {[%clk 0:00:09]} 38. bxc3 {[%clk 0:01:29]}  Rd8 {[%clk 0:00:09]} 39. Qc5+ {[%clk 0:01:27]}  Kf6 {[%clk 0:00:08]} 40. Qf5+ {[%clk 0:01:26]}  Kg7 {[%clk 0:00:03]} 41. Qg5+ {[%clk 0:01:26]} 1-0

[Event "December 5 Early 2023"]
[Site "https://www.chess.com"]
[Date "2023.12.05"]
[Round "3"]
[White "Vivaan Vishal Shah"]
[Black "Mejia, Cherry Ann"]
[Result "1-0"]
[Board "153"]
[TimeControl "180+1"]
[WhiteFideId "25184237"]
[BlackFideId "5206880"]
[WhiteElo "2575"]
[BlackElo "2308"]
[WhiteTeam "IND"]
[BlackTeam "PHI"]
[WhiteClock "0:00:41"]
[BlackClock "0:00:00"]

1. d4 {[%clk 0:03:00]}  d5 {[%clk 0:02:59]} 2. g3 {[%clk 0:02:57]}  b5 {[%clk 0:02:54]} 3. e4 {[%clk 0:02:53]}  dxe4 {[%clk 0:02:47]} 4. Bg2 {[%clk 0:02:52]}  Nf6 {[%clk 0:02:46]} 5. Nc3 {[%clk 0:02:45]}  Bb7 {[%clk 0:02:41]} 6. Nxb5 {[%clk 0:02:37]}  a6 {[%clk 0:02:35]} 7. Nc3 {[%clk 0:02:35]}  e6 {[%clk 0:02:34]} 8. Bg5 {[%clk 0:02:30]}  Bb4 {[%clk 0:01:44]} 9. Ne2 {[%clk 0:02:28]}  Nbd7 {[%clk 0:01:35]} 10. O-O {[%clk 0:02:24]}  Qc8 {[%clk 0:01:34]} 11. a3 {[%clk 0:02:18]}  Bd6 {[%clk 0:01:30]} 12. Re1 {[%clk 0:02:12]}  O-O {[%clk 0:01:25]} 13. Bf4 {[%clk 0:02:09]}  Bxf4 {[%clk 0:01:13]} 14. Nxf4 {[%clk 0:02:07]}  c5 {[%clk 0:01:13]} 15. Nxe4 {[%clk 0:02:06]}  Nxe4 {[%clk 0:01:12]} 16. Bxe4 {[%clk 0:02:05]}  Bxe4 {[%clk 0:01:12]} 17. Rxe4 {[%clk 0:02:06]}  Nf6 {[%clk 0:01:13]} 18. Re5 {[%clk 0:01:58]}  cxd4 {[%clk 0:01:13]} 19. Qxd4 {[%clk 0:01:58]}  Qxc2 {[%clk 0:01:12]} 20. Rg5 {[%clk 0:01:56]}  Kh8 {[%clk 0:00:59]} 21. Rxg7 {[%clk 0:01:41]}  Kxg7 {[%clk 0:00:46]} 22. Nh5+ {[%clk 0:01:40]}  Kg6 {[%clk 0:00:47]} 23. Qxf6+ {[%clk 0:01:38]}  Kxh5 {[%clk 0:00:47]} 24. h3 {[%clk 0:01:34]}  Rg8 {[%clk 0:00:29]} 25. Re1 {[%clk 0:01:08]}  Rxg3+ {[%clk 0:00:15]} 26. fxg3 {[%clk 0:01:07]}  Qc5+ {[%clk 0:00:16]} 27. Kg2 {[%clk 0:00:53]}  Qc6+ {[%clk 0:00:16]} 28. Kf1 {[%clk 0:00:43]}  Qc4+ {[%clk 0:00:14]} 29. Re2 {[%clk 0:00:41]}  Qc1+ {[%clk 0:00:12]} 30. Kg2 {[%clk 0:00:40]}  Qc6+ {[%clk 0:00:00]} 31. Kh2 {[%clk 0:00:41]} 1-0